Workbook

Sheet Tax Table (hidden)
A1: Federal Tax Table 2014 | B1: Blue is Changeable | D1: Tax is | E1: Of Amt. Over | F1: Income Tax Calculated for WITH Tuition Deduction | N1: Income Tax Calculated for without Tuition Deduction
F2: Federal Income Tax | G2: ='Extension Form'!F66 -> -10000 | M2: Federal Income Tax | N2: ='Extension Form'!E66 -> -10000
A3: 0 | B3: 8925 | C3: 0.1 | E3: 0 | F3: =IF(G$2>0,IF(G$2>$B3,$C3*$B3,G$2*$C3),0) -> 0 | H3: 0 | I3: 8925 | J3: 0.1 | L3: 0 | M3: =IF(N$2>0,IF(N$2>$B3,$C3*$B3,N$2*$C3),0) -> 0
A4: =B3+1 -> 8926 | B4: 36250 | C4: 0.15 | D4: =C3*B3 -> 892.5 | E4: =B3 -> 8925 | F4: =IF(G$2>0,IF(G$2>$A4,IF(G$2>$B4,($B4-$B3)*$C4,(G$2-$B3)*$C4),0),0) -> 0 | H4: =I3+1 -> 8926 | I4: 36250 | J4: 0.15 | K4: =J3*I3 -> 892.5 | L4: =I3 -> 8925 | M4: =IF(N$2>0,IF(N$2>$A4,IF(N$2>$B4,($B4-$B3)*$C4,(N$2-$B3)*$C4),0),0) -> 0
A5: =B4+1 -> 36251 | B5: 87850 | C5: 0.25 | D5: =$D4+$C4*($B4-$B3) -> 4991.25 | E5: =B4 -> 36250 | F5: =IF(G$2>0,IF(G$2>$A5,IF(G$2>$B5,($B5-$B4)*$C5,(G$2-$B4)*$C5),0),0) -> 0 | H5: =I4+1 -> 36251 | I5: 87850 | J5: 0.25 | K5: =$D4+$C4*($B4-$B3) -> 4991.25 | L5: =I4 -> 36250 | M5: =IF(N$2>0,IF(N$2>$A5,IF(N$2>$B5,($B5-$B4)*$C5,(N$2-$B4)*$C5),0),0) -> 0
A6: 87851 | B6: 183250 | C6: 0.28 | D6: =$D5+$C5*($B5-$B4) -> 17891.25 | E6: =B5 -> 87850 | F6: =IF(G$2>0,IF(G$2>$A6,IF(G$2>$B6,($B6-$B5)*$C6,(G$2-$B5)*$C6),0),0) -> 0 | H6: 87851 | I6: 183250 | J6: 0.28 | K6: =$D5+$C5*($B5-$B4) -> 17891.25 | L6: =I5 -> 87850 | M6: =IF(N$2>0,IF(N$2>$A6,IF(N$2>$B6,($B6-$B5)*$C6,(N$2-$B5)*$C6),0),0) -> 0
A7: 183251 | B7: 398350 | C7: 0.33 | D7: =$D6+$C6*($B6-$B5) -> 44603.25 | E7: =B6 -> 183250 | F7: 0 | H7: 183251 | I7: 398350 | J7: 0.33 | K7: =$D6+$C6*($B6-$B5) -> 44603.25 | L7: =I6 -> 183250 | M7: 0
A8: 398351 | B8: 400000 | C8: 0.36 | D8: =$D7+$C7*($B7-$B6) -> 115586.25 | E8: =B7 -> 398350 | F8: 0 | H8: 398351 | I8: 400000 | J8: 0.36 | K8: =$D7+$C7*($B7-$B6) -> 115586.25 | L8: =I7 -> 398350 | M8: 0
A9: 400001 | C9: 0.396 | D9: =$D8+$C8*($B8-$B7) -> 116180.25 | F9: =IF(G$2>0,IF(G$2>$A9, (G$2-$B8)*$C9,0),0) -> 0 | H9: 400001 | J9: 0.396 | K9: =$D8+$C8*($B8-$B7) -> 116180.25 | M9: =IF(N$2>0,IF(N$2>$A9, (N$2-$B8)*$C9,0),0) -> 0
A10: Single | E10: TOTAL TAXES: | F10: =SUM(F3:F9) -> 0 | H10: Single | L10: TOTAL TAXES: | M10: =SUM(M3:M9) -> 0
A13: 0 | B13: 17850 | C13: 0.1 | E13: 0 | F13: =IF(G$2>0,IF(G$2>$B13,$C13*$B13,G$2*$C13),0) -> 0 | H13: 0 | I13: 17850 | J13: 0.1 | L13: 0 | M13: =IF(N$2>0,IF(N$2>$B13,$C13*$B13,N$2*$C13),0) -> 0
A14: =B13+1 -> 17851 | B14: 72500 | C14: 0.15 | D14: =C13*B13 -> 1785 | E14: =B13 -> 17850 | F14: =IF(G$2>0,IF(G$2>$A14,IF(G$2>$B14,($B14-$B13)*$C14,(G$2-$B13)*$C14),0),0) -> 0 | H14: =I13+1 -> 17851 | I14: 72500 | J14: 0.15 | K14: =J13*I13 -> 1785 | L14: =I13 -> 17850 | M14: =IF(N$2>0,IF(N$2>$A14,IF(N$2>$B14,($B14-$B13)*$C14,(N$2-$B13)*$C14),0),0) -> 0
A15: =B14+1 -> 72501 | B15: 146400 | C15: 0.25 | D15: =$D14+$C14*($B14-$B13) -> 9982.5 | E15: =B14 -> 72500 | F15: =IF(G$2>0,IF(G$2>$A15,IF(G$2>$B15,($B15-$B14)*$C15,(G$2-$B14)*$C15),0),0) -> 0 | H15: =I14+1 -> 72501 | I15: 146400 | J15: 0.25 | K15: =$D14+$C14*($B14-$B13) -> 9982.5 | L15: =I14 -> 72500 | M15: =IF(N$2>0,IF(N$2>$A15,IF(N$2>$B15,($B15-$B14)*$C15,(N$2-$B14)*$C15),0),0) -> 0
A16: 146401 | B16: 223050 | C16: 0.28 | D16: =$D15+$C15*($B15-$B14) -> 28457.5 | E16: =B15 -> 146400 | F16: =IF(G$2>0,IF(G$2>$A16,IF(G$2>$B16,($B16-$B15)*$C16,(G$2-$B15)*$C16),0),0) -> 0 | H16: 146401 | I16: 223050 | J16: 0.28 | K16: =$D15+$C15*($B15-$B14) -> 28457.5 | L16: =I15 -> 146400 | M16: =IF(N$2>0,IF(N$2>$A16,IF(N$2>$B16,($B16-$B15)*$C16,(N$2-$B15)*$C16),0),0) -> 0
A17: 223051 | B17: 398350 | C17: 0.33 | D17: =$D16+$C16*($B16-$B15) -> 49919.5 | E17: =B16 -> 223050 | F17: 0 | H17: 223051 | I17: 398350 | J17: 0.33 | K17: =$D16+$C16*($B16-$B15) -> 49919.5 | L17: =I16 -> 223050 | M17: 0
A18: 398351 | B18: 450000 | C18: 0.36 | D18: =$D17+$C17*($B17-$B16) -> 107768.5 | E18: =B17 -> 398350 | F18: 0 | H18: 398351 | I18: 450000 | J18: 0.36 | K18: =$D17+$C17*($B17-$B16) -> 107768.5 | L18: =I17 -> 398350 | M18: 0
A19: 450001 | C19: 0.396 | D19: =$D18+$C18*($B18-$B17) -> 126362.5 | F19: =IF(G$2>0,IF(G$2>$A19, (G$2-$B18)*$C19,0),0) -> 0 | H19: 450001 | J19: 0.396 | K19: =$D18+$C18*($B18-$B17) -> 126362.5 | M19: =IF(N$2>0,IF(N$2>$A19, (N$2-$B18)*$C19,0),0) -> 0
A20: MFJ or QW | E20: TOTAL TAXES: | F20: =SUM(F13:F19) -> 0 | H20: MFJ or QW | L20: TOTAL TAXES: | M20: =SUM(M13:M19) -> 0
A23: 0 | B23: 8925 | C23: 0.1 | E23: 0 | F23: =IF(G$2>0,IF(G$2>$B23,$C23*$B23,G$2*$C23),0) -> 0 | H23: 0 | I23: 8925 | J23: 0.1 | L23: 0 | M23: =IF(N$2>0,IF(N$2>$B23,$C23*$B23,N$2*$C23),0) -> 0
A24: =B23+1 -> 8926 | B24: 36250 | C24: 0.15 | D24: =C23*B23 -> 892.5 | E24: =B23 -> 8925 | F24: =IF(G$2>0,IF(G$2>$A24,IF(G$2>$B24,($B24-$B23)*$C24,(G$2-$B23)*$C24),0),0) -> 0 | H24: =I23+1 -> 8926 | I24: 36250 | J24: 0.15 | K24: =J23*I23 -> 892.5 | L24: =I23 -> 8925 | M24: =IF(N$2>0,IF(N$2>$A24,IF(N$2>$B24,($B24-$B23)*$C24,(N$2-$B23)*$C24),0),0) -> 0
A25: =B24+1 -> 36251 | B25: 73200 | C25: 0.25 | D25: =$D24+$C24*($B24-$B23) -> 4991.25 | E25: =B24 -> 36250 | F25: =IF(G$2>0,IF(G$2>$A25,IF(G$2>$B25,($B25-$B24)*$C25,(G$2-$B24)*$C25),0),0) -> 0 | H25: =I24+1 -> 36251 | I25: 73200 | J25: 0.25 | K25: =$D24+$C24*($B24-$B23) -> 4991.25 | L25: =I24 -> 36250 | M25: =IF(N$2>0,IF(N$2>$A25,IF(N$2>$B25,($B25-$B24)*$C25,(N$2-$B24)*$C25),0),0) -> 0
A26: 73201 | B26: 111525 | C26: 0.28 | D26: =$D25+$C25*($B25-$B24) -> 14228.75 | E26: =B25 -> 73200 | F26: =IF(G$2>0,IF(G$2>$A26,IF(G$2>$B26,($B26-$B25)*$C26,(G$2-$B25)*$C26),0),0) -> 0 | H26: 73201 | I26: 111525 | J26: 0.28 | K26: =$D25+$C25*($B25-$B24) -> 14228.75 | L26: =I25 -> 73200 | M26: =IF(N$2>0,IF(N$2>$A26,IF(N$2>$B26,($B26-$B25)*$C26,(N$2-$B25)*$C26),0),0) -> 0
A27: 111526 | B27: 199175 | C27: 0.33 | D27: =$D26+$C26*($B26-$B25) -> 24959.75 | E27: =B26 -> 111525 | F27: 0 | H27: 111526 | I27: 199175 | J27: 0.33 | K27: =$D26+$C26*($B26-$B25) -> 24959.75 | L27: =I26 -> 111525 | M27: 0
A28: 199176 | B28: 225000 | C28: 0.36 | D28: =$D27+$C27*($B27-$B26) -> 53884.25 | E28: =B27 -> 199175 | F28: 0 | H28: 199176 | I28: 225000 | J28: 0.36 | K28: =$D27+$C27*($B27-$B26) -> 53884.25 | L28: =I27 -> 199175 | M28: 0
A29: 225001 | C29: 0.396 | D29: =$D28+$C28*($B28-$B27) -> 63181.25 | F29: =IF(G$2>0,IF(G$2>$A29, (G$2-$B28)*$C29,0),0) -> 0 | H29: 225001 | J29: 0.396 | K29: =$D28+$C28*($B28-$B27) -> 63181.25 | M29: =IF(N$2>0,IF(N$2>$A29, (N$2-$B28)*$C29,0),0) -> 0
A30: MFS | E30: TOTAL TAXES: | F30: =SUM(F23:F29) -> 0 | H30: MFS | L30: TOTAL TAXES: | M30: =SUM(M23:M29) -> 0
A33: 0 | B33: 12750 | C33: 0.1 | E33: 0 | F33: =IF(G$2>0,IF(G$2>$B33,$C33*$B33,G$2*$C33),0) -> 0 | H33: 0 | I33: 12750 | J33: 0.1 | L33: 0 | M33: =IF(N$2>0,IF(N$2>$B33,$C33*$B33,N$2*$C33),0) -> 0
A34: =B33+1 -> 12751 | B34: 48600 | C34: 0.15 | D34: =C33*B33 -> 1275 | E34: =B33 -> 12750 | F34: =IF(G$2>0,IF(G$2>$A34,IF(G$2>$B34,($B34-$B33)*$C34,(G$2-$B33)*$C34),0),0) -> 0 | H34: =I33+1 -> 12751 | I34: 48600 | J34: 0.15 | K34: =J33*I33 -> 1275 | L34: =I33 -> 12750 | M34: =IF(N$2>0,IF(N$2>$A34,IF(N$2>$B34,($B34-$B33)*$C34,(N$2-$B33)*$C34),0),0) -> 0
A35: =B34+1 -> 48601 | B35: 125450 | C35: 0.25 | D35: =$D34+$C34*($B34-$B33) -> 6652.5 | E35: =B34 -> 48600 | F35: =IF(G$2>0,IF(G$2>$A35,IF(G$2>$B35,($B35-$B34)*$C35,(G$2-$B34)*$C35),0),0) -> 0 | H35: =I34+1 -> 48601 | I35: 125450 | J35: 0.25 | K35: =$D34+$C34*($B34-$B33) -> 6652.5 | L35: =I34 -> 48600 | M35: =IF(N$2>0,IF(N$2>$A35,IF(N$2>$B35,($B35-$B34)*$C35,(N$2-$B34)*$C35),0),0) -> 0
A36: 125451 | B36: 203150 | C36: 0.28 | D36: =$D35+$C35*($B35-$B34) -> 25865 | E36: =B35 -> 125450 | F36: =IF(G$2>0,IF(G$2>$A36,IF(G$2>$B36,($B36-$B35)*$C36,(G$2-$B35)*$C36),0),0) -> 0 | H36: 125451 | I36: 203150 | J36: 0.28 | K36: =$D35+$C35*($B35-$B34) -> 25865 | L36: =I35 -> 125450 | M36: =IF(N$2>0,IF(N$2>$A36,IF(N$2>$B36,($B36-$B35)*$C36,(N$2-$B35)*$C36),0),0) -> 0
A37: 203151 | B37: 398350 | C37: 0.33 | D37: =$D36+$C36*($B36-$B35) -> 47621 | E37: =B36 -> 203150 | F37: 0 | H37: 203151 | I37: 398350 | J37: 0.33 | K37: =$D36+$C36*($B36-$B35) -> 47621 | L37: =I36 -> 203150 | M37: 0
A38: 398351 | B38: 425000 | C38: 0.36 | D38: =$D37+$C37*($B37-$B36) -> 112037 | E38: =B37 -> 398350 | F38: 0 | H38: 398351 | I38: 425000 | J38: 0.36 | K38: =$D37+$C37*($B37-$B36) -> 112037 | L38: =I37 -> 398350 | M38: 0
A39: 425001 | C39: 0.396 | D39: =$D38+$C38*($B38-$B37) -> 121631 | F39: =IF(G$2>0,IF(G$2>$A39, (G$2-$B38)*$C39,0),0) -> 0 | H39: 425001 | J39: 0.396 | K39: =$D38+$C38*($B38-$B37) -> 121631 | M39: =IF(N$2>0,IF(N$2>$A39, (N$2-$B38)*$C39,0),0) -> 0
A40: Head of Household | E40: TOTAL TAXES: | F40: =SUM(F33:F39) -> 0 | H40: Head of Household | L40: TOTAL TAXES: | M40: =SUM(M33:M39) -> 0
A42: http://www.irs.gov/uac/Newsroom/In-2014,-Various-Tax-Benefits-Increase-Due-to-Inflation-Adjustments
A43: http://www.irs.gov/Retirement-Plans/Plan-Participant,-Employee/Retirement-Topics---401(k)-and-Profit-Sharing-Plan-Contribution-Limits
A45: Constant Amounts
A46: 401K Catch Up | B46: 5500
A47: Single | B47: 6100 | C47: Standard Deduction Amounts
A48: =A20 -> MFJ or QW | B48: 12200
A49: =A30 -> MFS | B49: 6100
A50: =A40 -> Head of Household | B50: 8950
A51: Senr, Blind, Single, Extra St Ded | B51: 1200
A52: Senr, Blind, Married, Extra | B52: 1550
A53: Fed Single Exemp Amt | B53: 3900 | E53: ='Extension Form'!G4*'Tax Table'!B53 -> 3900
A54: State Stand Ded & Exemp Amt | B54: 2050
A55: Simple 401(K) Max | B55: 12000
A56: Employee 401(K) Max | B56: 17500
A57: Solo 401(K) Max Deferral | B57: 52000 | C57: (Section 415(c)(1)(A)
A58: Social Security Wage Base | B58: 117000
A59: Futa Wage Base | B59: 7000
A60: FUTA Credit | B60: 0.054
A61: Suta Wage Base | B61: 12900 | D61: Threshold Amounts for Additional Medicare Tax & NII
A62: Additional Medicare Tax | B62: 0.009 | D62: Single, HOH,QW | E62: 200000
A63: Net Investment Tax | B63: 0.038 | D63: MFJ | E63: 250000
A64: Self Employment Tax Rate | B64: 0.153 | D64: MFS | E64: 125000
D66: Withholding Threshhold for Additional Medicare Tax
E67: 200000

Sheet Extension Form
D1: 1040 Estimated Tax Return
C2: Line # of 1040 Form | E2: FALSE
E3: Single
D4: Number of Qualifying Dependents you supported in tax year: | E4: FALSE | G4: 1
D5: Number of Dependent Children you supported under age 17 by Dec 31st of tax year: | G5: 0
D6: Personal 1040 Tax Return Income Tax Calculation
E7: Invisible Values. Do not delete this row
C8: 7 | D8: Total of all your & your spouses W2s Box 1 (if filing jointly) | E8: Invisible Values. Do not delete this row | H8: =G8 -> 0
C9: 8a | D9: Gross Interest Income | E9: Invisible Values. Do not delete this row | H9: =G9 -> 0
C10: 8b | D10: Tax-exempt interest (usually federally owned securities like Treasury & Education Bonds) | E10: Invisible Values. Do not delete this row
C11: 9a | D11: Gross Dividend Income | E11: Invisible Values. Do not delete this row | H11: =G11 -> 0
C12: 10 | D12: State Income Tax Refunds Received in Tax Year | E12: Invisible Values. Do not delete this row | H12: 0
C13: 11 | D13: Alimony received (child support is not taxable) | E13: Invisible Values. Do not delete this row | H13: 0
C14: 12 | D14: Gross Profits from all Sole Proprietorship You have (losses/profits from corps enter on lne 17) | E14: Invisible Values. Do not delete this row | H14: 0
C15: 13 | D15: Capital Gains (Sales this year - Orig Cost), (Stocks, property) | E15: Invisible Values. Do not delete this row | H15: 0
C16: 14 | D16: Profit or losses from any sale of business assets in your sole proprietorship | E16: Invisible Values. Do not delete this row | H16: 0
C17: 15a | D17: IRA Distributions (Monies withdrawn from IRA and not reinvested or rolled over) | E17: Invisible Values. Do not delete this row | H17: 0
C18: 16a | D18: Pensions and Annuities Received and taxable | E18: Invisible Values. Do not delete this row | H18: 0
C19: 17 | D19: Rental Real Estate Profit (all properties together, net of same depreciation as last year) | E19: Invisible Values. Do not delete this row | H19: 0
D20: Profits from S Corps, trusts, and LLC (add all profits & losses together to net out) | E20: Invisible Values. Do not delete this row | H20: 0
C21: 18 | D21: Farm Income (Profit from your farming business, if any) | E21: Invisible Values. Do not delete this row | H21: 0
C22: 19 | D22: Unemployment Compensation | E22: Invisible Values. Do not delete this row | H22: 0
C23: 20a | D23: Social Security Benefits | E23: Invisible Values. Do not delete this row | H23: ='Social Security Worksheet'!C35 -> 0
C24: 21 | D24: Cancellation of Debt (1099-C) | E24: Invisible Values. Do not delete this row | H24: =G24 -> 0
D25: Unrealized Gains for Foreign Mutual Funds (PFICS) | E25: Invisible Values. Do not delete this row | H25: =G25 -> 0
D26: Other Income (Miscellaneous One time income, Jury Duty). | E26: Invisible Values. Do not delete this row | H26: 0
D27: NOL from prior years | E27: Invisible Values. Do not delete this row | H27: 0
D28: Gambling Winnings, Prizes, Awards | E28: Invisible Values. Do not delete this row | H28: 0
C29: 22 | D29: Total Income | E29: Invisible Values. Do not delete this row | H29: =SUM(H8:H28) -> 0
C32: 23 | D32: Educator Expenses (Maximum is $250) | H32: =IF(G32>0,IF(G32<=250,G32,250),0) -> 0
C33: 24 | D33: Certain business expenses of reservits, performing artists, and fee-basis government officials. | H33: =IF(G33>0,G33,0) -> 0
C34: 25 | D34: HSA Contributed in tax year, or to be done by April 15th (Not Deducted through Paychecks) | H34: =IF(G34>0,IF('HSA Contribution Deduction Lmts'!D2,IF(G34>='HSA Contribution Deduction Lmts'!B2,'HSA Contribution Deduction Lmts'!B2,G34),IF('HSA Contribution Deduction Lmts'!E2,IF(G34>='HSA Contribution Deduction Lmts'!C2,'HSA Contribution Deduction Lmts'!C2,G34),"Click option")),0) -> 0
C36: 26 | D36: Moving Expenses (Only input what was NOT reimbursed to you) | H36: =IF(G36>0,G36,0) -> 0
C37: 27 | D37: Deductible part of self-employment tax (calculated at 50% of 15.3% of 92.35% of line 12, over $400 profit) | G37: =0.5*0.153*0.9235*H14 -> 0 | H37: =G37 -> 0
C38: 28 | D38: SEP, SIMPLE, & qualified plan contributed in tax year, or to be done by April 15th (sole proprietor only) Choose Plan Contrib Rate: | E38: 0.03 | G38: 0 | H38: =IF(G38>0,IF(G38>='Deduction Worksheet for SE'!N26,'Deduction Worksheet for SE'!N26,G38),0) -> 0
C39: 29 | D39: Self-employed health insurance deductions | H39: =IF(G39>0,G39,0) -> 0
C40: 30 | D40: Penalty on early withdrawal on savings accounts and Bank CDs | H40: =IF(G40>0,G40,0) -> 0
C41: 31a | D41: Alimony paid to ex-spouse | H41: =IF(G41>0,G41,0) -> 0
C42: 32 | D42: IRA contribution done or to be done by April 15th this year (max $5,000, affected by income limits). | E42: TRUE | H42: =IF(G42>0,IF(E42,IF(G42>=('IRS COLA Limits'!F12+'IRS COLA Limits'!F11),'IRS COLA Limits'!F11+'IRS COLA Limits'!F12,G42),IF(G42>='IRS COLA Limits'!F11,'IRS COLA Limits'!F11,G42)),0) -> 0
D43: Spousal IRA done or to be done by April 15th this year (max $5,000, affected by income limits). | H43: =IF(G43>0,IF(E43,IF(G43>=('IRS COLA Limits'!F12+'IRS COLA Limits'!F11),'IRS COLA Limits'!F11+'IRS COLA Limits'!F12,G43),IF(G43>='IRS COLA Limits'!F11,'IRS COLA Limits'!F11,G43)),0) -> 0
C44: 33 | D44: Student Loan Interest Paid in tax year | H44: =IF(G44>0,MIN(G44,'Stud Loan Int & Tuition & Fees '!K19),0) -> 0
C45: 34 | D45: Undergraduate tuition & fees paid to a US accredited University/College only (must be at least halftime student going for a degree) | F45: =IF((G45+G46)>0,MIN('Stud Loan Int & Tuition & Fees '!K32,G45+G46),0) -> 0 | H45: =IF((E67-E70-E79)<F67,0,F45) -> 0
D46: Graduate or post graduate tuition & fees paid to a US accredited University/College only.
E50: without tuition deduction | F50: with tuit deduction
C51: 37 | D51: total AGI 1040 | E51: =H29-SUM(H32:H44) -> 0 | F51: =H29-SUM(H32:H44,F45) -> 0 | H51: =IF((E67-E70-E79)<F67,E51,F51) -> 0
C52: 40 | D52: Mortgage Interest & Mortgage Insurance Paid on Primary Home & Vacation Home | E52: =IF(G52>0,G52,0) -> 0 | F52: =IF(G52>0,G52,0) -> 0 | H52: =IF(G52>0,G52,0) -> 0
D53: Investment Interest (Usually margin interest through your brokerage account) | E53: =IF(G53>0,G53,0) -> 0 | F53: =IF(G53>0,G53,0) -> 0 | H53: =IF(G53>0,G53,0) -> 0
D54: Property Taxes Paid on Primary Home & Vacation Home | E54: =IF(G54>0,G54,0) -> 0 | F54: =IF(G54>0,G54,0) -> 0 | H54: =IF(G54>0,G54,0) -> 0
D55: State Income Taxes withheld from all your & Spouse's W2s | E55: =IF(G55>0,G55,0) -> 0 | F55: =IF(G55>0,G55,0) -> 0 | H55: =IF(G55>0,G55,0) -> 0
D56: Any other personal taxes (vehicle, for. e.g.) not car registration! | E56: =IF(G56>0,G56,0) -> 0 | F56: =IF(G56>0,G56,0) -> 0 | H56: =IF(G56>0,G56,0) -> 0
D57: Total UNREIMBURSED Medical Expenses Paid by you | E57: =IF((G57-(0.1*E51))>0,G57-(0.1*E51),0) -> 0 | F57: =IF((G57-(0.1*F51))>0,G57-(0.1*F51),0) -> 0 | H57: =IF((G57-(0.1*H51))>0,G57-(0.1*H51),0) -> 0
D58: Charity Contributions (Cash & Noncash) | E58: =IF(G58>0,IF(G58>0.5*E51,0.5*E51,G58),0) -> 0 | F58: =IF(G58>0,IF(G58>0.5*F51,0.5*F51,G58),0) -> 0 | H58: =IF(G58>0,IF(G58>0.5*H51,0.5*H51,G58),0) -> 0
D59: Casualty Losses, if any
D60: Gambling Losses | E60: =IF(G60>0,IF(G60>=H28,H28,G60),0) -> 0 | F60: =IF(G60>0,IF(G60>=H28,H28,G60),0) -> 0 | H60: =IF(G60>0,IF(G60>=H28,H28,G60),0) -> 0
D61: Unreimbursed work & work travel expenses, work training, uniforms, boots, etc. | E61: =IF((G61-(0.025*E51))>0,G61-(0.025*E51),0) -> 0 | F61: =IF((G61-(0.025*F51))>0,G61-(0.025*F51),0) -> 0 | H61: =IF((G61-(0.025*H51))>0,G61-(0.025*H51),0) -> 0
D62: Total Itemizable Deductions | E62: =SUM(E52:E61) -> 0 | F62: =SUM(F52:F61) -> 0 | H62: =SUM(H52:H61) -> 0
D63: Allowable Standard Deduction | E63: =IF(E3="Single",'Tax Table'!B47,IF(OR(E3="MFJ",E3="QW"),'Tax Table'!B48,IF(E3="HOH",'Tax Table'!B50,IF(OR(E3="MFS lived with Spouse",E3="MFS lived apart from Spouse all year"),'Tax Table'!B49,"FILING STATUS??")))) -> 6100 | F63: =IF(E3="Single",'Tax Table'!B47,IF(OR(E3="MFJ",E3="QW"),'Tax Table'!B48,IF(E3="HOH",'Tax Table'!B50,IF(OR(E3="MFS lived with Spouse",E3="MFS lived apart from Spouse all year"),'Tax Table'!B49,"FILING STATUS??")))) -> 6100 | H63: =IF(E3="Single",'Tax Table'!B47,IF(OR(E3="MFJ",E3="QW"),'Tax Table'!B48,IF(E3="HOH",'Tax Table'!B50,IF(OR(E3="MFS lived with Spouse",E3="MFS lived apart from Spouse all year"),'Tax Table'!B49,"FILING STATUS??")))) -> 6100
D64: Deduction Taken | E64: =MAX(E62,E63) -> 6100 | F64: =MAX(F62,F63) -> 6100 | H64: =MAX(H62,H63) -> 6100
D65: Dependent & Personal Exemptions Used | E65: ='Tax Table'!E53 -> 3900 | F65: ='Tax Table'!E53 -> 3900 | H65: ='Tax Table'!E53 -> 3900
C66: 43 | D66: taxable income | E66: =E51-E64-E65 -> -10000 | F66: =F51-F64-F65 -> -10000 | H66: =E51-E64-E65 -> -10000
C67: 44 | D67: Federal Income Tax | E67: =IF(E3="Single",'Tax Table'!M$10,IF(OR(E3="MFJ",E3="QW"),'Tax Table'!M$20,IF(OR(E3="MFS lived apart from Spouse all year",E3="MFS lived with Spouse"),'Tax Table'!M$30,IF(E3="HOH",'Tax Table'!M$40,"ERROR: FILING STATUS NOT CHOSEN")))) -> 0 | F67: =IF(E3="Single",'Tax Table'!F$10,IF(OR(E3="MFJ",E3="QW"),'Tax Table'!F$20,IF(OR(E3="MFS lived apart from Spouse all year",E3="MFS lived with Spouse"),'Tax Table'!F$30,IF(E3="HOH",'Tax Table'!F$40,"ERROR: FILING STATUS NOT CHOSEN")))) -> 0 | H67: =IF(E3="Single",'Tax Table'!M$10,IF(OR(E3="MFJ",E3="QW"),'Tax Table'!M$20,IF(OR(E3="MFS lived apart from Spouse all year",E3="MFS lived with Spouse"),'Tax Table'!M$30,IF(E3="HOH",'Tax Table'!M$40,"ERROR: FILING STATUS NOT CHOSEN")))) -> 0
C68: 45 | D68: Alternative Minimum Tax | H68: =IF(AMT!D37>0,AMT!D37,0) -> 0
C69: 46 | D69: Add lines 44 & 45 (total tentative tax before credits) | H69: =SUM(H67:H68) -> 0
C70: 49 | D70: Nonrefundable Tuition Credit (Undergrad & Grad) | E70: ='Stud Loan Int & Tuition & Fees '!K56 -> 0 | H70: =IF((E67-E70-E79)<F67,-E70,0) -> 0
C71: 51 | D71: Child Credit | H71: =-'Child Tax Credit Form'!D15 -> 0
C72: 56 | D72: Self Employment Tax | H72: =IF(H14>0,IF(H14>400,0.9235*H14*'Tax Table'!B64,0),0) -> 0
C73: 61 | D73: Total Tax (net of nonrefundable tuition credits & child credit) | H73: =H69-H70-H71+H72 -> 0
C74: 62 | D74: Federal Taxes Withheld from W2s and 1099s | H74: =IF(G74>0,-G74,0) -> 0
C75: 63 | D75: Estimated Payments made for this tax year (through monthly or quarterly payments you may have done, for this tax year) | H75: =IF(G75>0,-G75,0) -> 0
D76: First-time homebuyer credit repayment | H76: =IF(G76>0,G76,0) -> 0
D77: ="Additional Medicare Tax ("&TEXT('Tax Table'!$B$62,"0.00%")&")" -> Additional Medicare Tax (0.90%) | H77: =IF(OR(E3="Single",E3="HOH",E3="QW"),IF((H8+H14-'Tax Table'!$E$62)*'Tax Table'!$B$62>0,(H8+H14-'Tax Table'!$E$62)*'Tax Table'!$B$62,0),IF(OR(E3="MFS lived apart from Spouse all year",E3="MFS lived with Spouse"),IF((H8+H14-'Tax Table'!$E$64)*'Tax Table'!$B$62>0,(H8+H14-'Tax Table'!$E$64)*'Tax Table'!$B$62,0),IF(E3="MFJ",IF((H8+H14-'Tax Table'!$E$63)*'Tax Table'!$B$62>0,(H8+H14-'Tax Table'!$E$63)*'Tax Table'!$B$62,0),"ERROR: FILING STATUS NOT CHOSEN"))) -> 0
D78: ="Net Investment Tax ("&TEXT('Tax Table'!$B$63,"0.00%")&")" -> Net Investment Tax (3.80%) | H78: =IF(OR(E3="Single",OR(E3="MFS lived apart from Spouse all year",E3="MFS lived with Spouse"),E3="HOH"),IF(MIN(H51-'Tax Table'!$E$62,H9+H11+H15+H16+H19+H20)*'Tax Table'!$B$63>=0,MIN(H51-'Tax Table'!$E$62,H9+H11+H15+H16+H19+H20)*'Tax Table'!$B$63,0),IF(OR(E3="MFJ",E3="QW"),IF(MIN(H51-'Tax Table'!$E$63,H9+H11+H15+H16+H19+H20)*'Tax Table'!$B$63>=0,MIN(H51-'Tax Table'!$E$63,H9+H11+H15+H16+H19+H20)*'Tax Table'!$B$63,0),IF(OR(E3="MFS lived with Spouse",E3="MFS lived apart from Spouse all year"),IF(MIN(H51-'Tax Table'!$E$64,H9+H11+H15+H16+H19+H20)*'Tax Table'!$B$63>=0,MIN(H51-'Tax Table'!$E$64,H9+H11+H15+H16+H19+H20)*'Tax Table'!$B$63,0)))) -> 0
C79: 66 | D79: American Opportunity Credit | E79: ='Stud Loan Int & Tuition & Fees '!K43 -> 0 | H79: =IF((E67-E70-E79)<F67,-E79,0) -> 0
C80: 68 | D80: Amount paid with request for extension to file: | H80: =IF(G80>0,G80,0) -> 0
C82: 73/74 | D82: Amount Overpaid and To Be Refunded to you (No need to take an extension. You have 3 years from April 15th to claim this file and claim refund). | H82: =IF(SUM(H73:H80)<0,SUM(H73:H80),0) -> 0
C84: 76 | D84: Amount Owed (PAY THIS AMOUNT WITH AN IRS VOUCHER VIA CHECK) OR ELECTRONICALLY THROUGH OFFICIALPAYMENTS.COM | H84: =IF(SUM(H73:H82)>=0,SUM(H73:H82),0) -> 0

Sheet Social Security Worksheet (hidden)
B1: Social Security Benefits Worksheet -- Lines 20a & 20b
B3: 1. Amount from box 5 of all SSA-1099s & RRB 1099s | C3: ='Extension Form'!G23 -> 0
B4: 2. One half of Line 1 | C4: =0.5*C3 -> 0
B5: 3. Wages, Taxable Interest, Ordinary Div, Tax Refunds, Alimony, Bus Profits, Cap gains | C5: =SUM('Extension Form'!H9:'Extension Form'!H22)+SUM('Extension Form'!H24:'Extension Form'!H26) -> 0
B6: 4. Tax Exempt Interest | C6: ='Extension Form'!G10 -> 0
B7: 5. Subtotal | C7: =SUM(C4+C5+C6) -> 0
B9: 6. Before AGI deductions (except Student loans, tuition, domestic production activities) | C9: =SUM('Extension Form'!H32:H42) -> 0
B10: 7. If amount of deductions is less than amount of subtotal, then continue.. | C10: =IF(C9<C7,C7-C9,0) -> 0
B11: Else STOP here, none of your social security benefits are taxable. Enter 0 on 1040 line 20b.
B12: Subtract "before AGI deductions" from Subtotal above.
B14: 8. If MFJ, enter $32,000, Single, HOH, QW, or MFS & lived apart from spouse all year, enter $25,000 If MFS, and lived WITH spouse for all of year, skip lines 8 through 15, multiply line 7 above difference by .85 & enter result on line 16. hen go to line 17. | C14: =IF(OR('Extension Form'!E3="Single",'Extension Form'!E3="HOH",'Extension Form'!E3="QW",'Extension Form'!E3="MFS lived apart from Spouse all year"),25000,IF('Extension Form'!E3="MFJ",32000,0)) -> 25000
B16: 9. Is the amount on line 8 less than the amount on line 7? If no, None of your social security benefits are taxable. | C16: =IF('Extension Form'!E3="MFS lived with Spouse","Skip lines 8-15, multiply 7 by 85% & enter on line 16, then go to line 17",IF(C14<C10,C10-C14,0)) -> 0
B17: If yes, then subtract line 8 from 7.
B19: 10. Enter: $12,000 for MFJ, $9,000 for single, HOH, QW, or MFS & lived apart for entire year. | C19: =IF('Extension Form'!E3="MFS lived with Spouse","Skip lines 8-15, multiply 7 by 85% & enter on line 16, then go to line 17",IF('Extension Form'!E3="MFJ",12000,IF(OR('Extension Form'!E3="Single",'Extension Form'!E3="HOH",'Extension Form'!E3="QW",'Extension Form'!E3="MFS lived apart from Spouse all year"),9000,0))) -> 9000
B21: 11. Subtract line 10 from 9. If zeor or less, enter -0-. | C21: =IF('Extension Form'!E3="MFS lived with Spouse","Skip lines 8-15, multiply 7 by 85% & enter on line 16, then go to line 17",IF(C16-C19<=0,0,C16-C19)) -> 0
B23: 12. Enter the smaller of line 9 or line 10. | C23: =IF('Extension Form'!E3="MFS lived with Spouse","Skip lines 8-15, multiply 7 by 85% & enter on line 16, then go to line 17",MIN(C16,C19)) -> 0
B25: 13. Enter one-half of line 12. | C25: =IF('Extension Form'!E3="MFS lived with Spouse","Skip lines 8-15, multiply 7 by 85% & enter on line 16, then go to line 17",0.5*C23) -> 0
B27: 14. Enter the smaller of line 2 or line 13. | C27: =IF('Extension Form'!E3="MFS lived with Spouse","Skip lines 8-15, multiply 7 by 85% & enter on line 16, then go to line 17",MIN(C4,C5)) -> 0
B29: 15. Multiply line 11 by 85%. If line 11 is zero, enter -0-. | C29: =IF('Extension Form'!E3="MFS lived with Spouse","Skip lines 8-15, multiply 7 by 85% & enter on line 16, then go to line 17",0.85*C21) -> 0
B31: 16. Add lines 14 & 15. | C31: =IF('Extension Form'!E3="MFS lived with Spouse",C10*0.85,C27+C29) -> 0
B33: 17. Muiltiply line 1 by 85% (.85) | C33: =C3*0.85 -> 0
B35: 18. Taxable social security benefits: Enter the smaller of line 16 or 17. Also enter this amount on Form 1040, line 20b. | C35: =MIN(C31,C33) -> 0

Sheet HSA Contribution Deduction Lmts (hidden)
A1: Year | B1: Single | C1: Family | D1: Personal | E1: Family
A2: 2013 | B2: 3250 | C2: 6450 | D2: TRUE | E2: TRUE
A3: 2014 | B3: 3300 | C3: 6550
A4: 2015
A5: irs

Sheet Deduction Worksheet for SE (hidden)
B1: Rate Table for Self-Employed | G1: Rate Worksheet for Self-Employed | M1: Deduction Worksheet for Self-Employed (Publication 560)
B2: Column A | C2: Column B
B3: If plan Contribution Rate is (%) | N3: Calcs
B4: 0.01 | C4: =$B4/($B4+1) -> 0.009900990099 | F4: Plan Contribution rate as a decimal | J4: ='Extension Form'!E38 -> 0.03 | L4: Step 1 | M4: Net Profit from Schedule C | N4: ='Extension Form'!H14 -> 0
B5: 0.02 | C5: 0.01960784314 | F5: Rate above plus 1 | J5: =1+J4 -> 1.03 | L5: Step 2 | M5: SE Tax Deduction | N5: ='Extension Form'!H37 -> 0
B6: 0.03 | C6: 0.02912621359 | F6: Self-employed rate (plan cont/rate plus 1): | J6: =J4/J5 -> 0.02912621359 | L6: Step 3 | M6: Net earnings from SE | N6: =N4-N5 -> 0
B7: 0.04 | C7: 0.03846153846 | L7: Step 4 | M7: Rate from Rate Table or Rate Worksheet | N7: =J6 -> 0.02912621359
B8: 0.05 | C8: 0.04761904762 | L8: Step 5 | M8: Multiply step 3 by 4 | N8: =N6*N7 -> 0
B9: 0.06 | C9: 0.05660377358 | L9: Step 6 | M9: ="Multiply "&DOLLAR('IRS COLA Limits'!F27,0)&" by your plan contribution rate" -> Multiply $51,000 by your plan contribution rate | N9: =255000*J4 -> 7650
B10: 0.07 | C10: 0.06542056075 | L10: Step 7 | M10: Enter smaller of step 5 or 6 | N10: =MIN($N8,$N9) -> 0
B11: 0.08 | C11: 0.07407407407 | L11: Step 8 | M11: Contribution dollar limit ($50,000 for 2012, $51,000 for 2013) | N11: ='IRS COLA Limits'!D27 -> 51000
B12: 0.09 | C12: 0.08256880734 | M12: If you made any elective deferrals to yoru SE plan, go to step 9, otherwise skip steps 9 thru 20 & enter the smaller of step 7 or step 8 on step 21.
B13: 0.1 | C13: 0.09090909091 | L13: Step 9 | M13: Allowable elective deferrals already done (including designated Roth contrib) (do not enter more than $17,500) | N13: ='Extension Form'!G38 -> 0
B14: 0.11 | C14: 0.0990990991 | L14: Step 10 | M14: Subtract step 9 from step 8 | N14: =IF($N$13<=17500,$N$11-$N$13,$N$11-17500) -> 51000
B15: 0.12 | C15: 0.1071428571 | L15: Step 11 | M15: Subtract step 9 from step 3 | N15: =N6-N13 -> 0
B16: 0.13 | C16: 0.1150442478 | L16: Step 12 | M16: Enter one-half of step 11 | N16: =0.5*N15 -> 0
B17: 0.14 | C17: 0.1228070175 | L17: Step 13 | M17: Enter the smallest of step 7 ,10, or 12 | N17: =MIN(N10,N14,N16) -> 0
B18: 0.15 | C18: 0.1304347826 | L18: Step 14 | M18: Subtract step 13 from step 3 | N18: =N6-N17 -> 0
B19: 0.16 | C19: 0.1379310345 | L19: Step 15 | M19: Enter the smaller of step 9 or step 14 | N19: =MIN(N13,N18) -> 0
B20: 0.17 | C20: 0.1452991453 | M20: If you made catch-up contributions, go to step 16, otherwise skip steps 16 thru 18 & go to step 19.
B21: 0.18 | C21: 0.1525423729 | L21: Step 16 | M21: Subtract step 15 from step 14 | N21: =N18-N19 -> 0
B22: 0.19 | C22: 0.1596638655 | L22: Step 17 | M22: Enter your catch-up contributions (including designated Roth contributions), if any. Not more than $5,500 | N22: 0
B23: 0.2 | C23: 0.1666666667 | L23: Step 18 | M23: Enter smaller of step 16 or step 17 | N23: =MIN(N21,N22) -> 0
B24: 0.21 | C24: 0.173553719 | L24: Step 19 | M24: Add steps 13,15, and 18. | N24: =SUM(N17,N19,N23) -> 0
B25: 0.22 | C25: 0.1803278689 | L25: Step 20 | M25: Enter the amount of designated ROTH contributions included on lines 9 and 17 | N25: 0
B26: 0.23 | C26: 0.1869918699 | L26: Step 21 | M26: Subtract step 20 from 19. This is maximum deductible contribuiton. | N26: =N24-N25 -> 0
B27: 0.24 | C27: 0.1935483871
B28: 0.25 | C28: =$B28/($B28+1) -> 0.2

Sheet IRS COLA Limits (hidden)
A1: http://www.irs.gov/Retirement-Plans/COLA-Increases-for-Dollar-Limitations-on-Benefits-and-Contributions
A2: COLA Increases for Dollar Limitations on Benefits and Contributions
A3: The Internal Revenue Code provides for dollar limitations on benefits and contributions under qualified retirement plans. IRC Section 415 requires the limits to be adjusted annually for cost-of-living increases. The IRS announced on October 31, 2013 cost-of-living adjustments applicable to dollar limitations for pension plans and other items for tax year 2014.
A6: Please see our COLA Increases Table for prior years' dollar limitations and Internal Revenue Code references.
C9: 2014 | D9: 2013 | E9: 2012 | F9: Current Values Used
B10: IRAs
B11: IRA Contribution Limit | C11: 5500 | D11: 5500 | E11: 5000 | F11: 5500
B12: IRA Catch-Up Contributions | C12: 1000 | D12: 1000 | E12: 1000 | F12: 1000
B13: IRA AGI Deduction Phase-out Starting at
B14: Joint Return | C14: 96000 | D14: 95000 | E14: 92000 | F14: 95000
B15: Single or Head of Household | C15: 60000 | D15: 59000 | E15: 58000 | F15: 59000
B16: SEP
B17: SEP Minimum Compensation | C17: 550 | D17: 550 | E17: 550 | F17: 550
B18: SEP Maximum Contribution | C18: 52000 | D18: 51000 | E18: 50000 | F18: 51000
B19: SEP Maximum Compensation | C19: 260000 | D19: 255000 | E19: 250000 | F19: 255000
B20: SIMPLE Plans
B21: SIMPLE Maximum Contributions | C21: 12000 | D21: 12000 | E21: 11500 | F21: 12000
B22: Catch-up Contributions | C22: 2500 | D22: 2500 | E22: 2500 | F22: 2500
B23: 401(k), 403(b), Profit-Sharing Plans, etc.
B24: Annual Compensation | C24: 260000 | D24: 255000 | E24: 250000 | F24: 255000
B25: Elective Deferrals | C25: 17500 | D25: 17500 | E25: 17000 | F25: 17500
B26: Catch-up Contributions | C26: 5500 | D26: 5500 | E26: 5500 | F26: 5500
B27: Defined Contribution Limits | C27: 52000 | D27: 51000 | E27: 50000 | F27: 51000
B28: ESOP Limits | C28: 1050000 | D28: 1035000 | E28: 1015000 | F28: 1035000
C29: 210000 | D29: 205000 | E29: 200000 | F29: 205000
B30: Other
B31: HCE Threshold | C31: 115000 | D31: 115000 | E31: 115000 | F31: 115000
B32: Defined Benefit Limits | C32: 210000 | D32: 205000 | E32: 200000 | F32: 205000
B33: Key Employee | C33: 170000 | D33: 165000 | E33: 165000 | F33: 165000
B34: 457 Elective Deferrals | C34: 17500 | D34: 17500 | E34: 17000 | F34: 17500
B35: Control Employee (board member or officer) | C35: 105000 | D35: 100000 | E35: 100000 | F35: 100000
B36: Control Employee (compensation-based) | C36: 210000 | D36: 205000 | E36: 205000 | F36: 205000
B37: Taxable Wage Base | C37: 117000 | D37: 113700 | E37: 110100 | F37: 113700

Sheet Stud Loan Int & Tuition & Fees (hidden)
A1: Student Loan Interest Deduction
A2: Line 1 | B2: Enter Total Interest Paid in tax year on a qualified student loan (do NOT enter more than $2,500) | K2: ='Extension Form'!G44 -> 0
A3: Line 2 | B3: Enter amount from Form 1040, line 22, total income | K3: ='Extension Form'!H29 -> 0
A4: Lines 3,4 & 5 | B4: Enter total of the amounts from 1040, 23-32, plus any write-in adjustments entered on line 36 | K4: =SUM('Extension Form'!H32:'Extension Form'!H42) -> 0
A5: Line 6 | B5: Subtract line 3 from 2 | K5: =K3-K4 -> 0
A6: Line 7 | B6: Enter any foreign earned income exclusion and/or housing exclusion (Form 2555, or 2555-EZ)
A7: Line 8 | B7: Enter any foreign housing deduciotn (Form 2555)
A8: Line 9 | B8: Enter the amount of income from Puerto Rico you are excluding
A9: Line 10 | B9: Enter the amount of income from American Samoa you are excluding
A10: Line 11 | B10: Add lines 6 through 10. This is the modified adusted gross income (MAGI) | K10: =SUM(K5:K9) -> 0
A11: Line 12 | B11: Enter the amount shown below foryour filing status
B12: - Single, HOH, QW: 60,000 | K12: =IF(OR('Extension Form'!E3="Single",'Extension Form'!E3="HOH",'Extension Form'!E3="QW"),60000,IF('Extension Form'!E3="MFJ",125000,0)) -> 60000
B13: - MFJ: $125,000
A14: Line 13 | B14: Is amount on line 11 more than amount on line 12? | K14: =IF(K10>K12,K10-K12,0) -> 0
B15: If no, then Skip lines 13 & 14, enter 0 on line 15, and go to line 16
B16: If yes, then subtract line 5 from line 4
A17: Line 14 | B17: Divide line 13 by $15,000 ($30,000 if MFJ). Enter result as a decimal | K17: =IF(K10>K12,IF('Extension Form'!E3="MFJ",IF(K14/30000>1,1,K14/30000),IF(K14/15000>1,1,K14/15000)),0) -> 0
A18: Line 15 | B18: Multiply line 1 by line 14 | K18: =K2*K17 -> 0
A19: Line 16 | B19: Student Loan Interest Deduction (Subtract line 15 from 1. Enter here & on Form 1040 line 33 | K19: =K2-K18 -> 0
A21: Tuition & Fees Deduction (Form 8917)
A22: Line 1 | B22: Amount from 1040, line 22 | K22: ='Extension Form'!H29 -> 0
A23: Line 2 | B23: Total from Form 1040, lines 23 through 33 | K23: =SUM('Extension Form'!H32:'Extension Form'!H44) -> 0
A24: Line 3 | B24: Dotted amounts entered on line next to form 1040, line 36
A25: Line 4 | B25: Add lines 2 & 3 | K25: =K23+K24 -> 0
A26: Line 5 | B26: Subtract line 4 form line 1 | K26: =K22-4 -> -4
A27: Line 6 | B27: Enter foreign earned income exclusion and/or housing exclusion (form 2555 line 45)
A28: Line 7 | B28: Enter foreign housing deducion (form 2555, line 50)
A29: Line 8 | B29: Enter amount of income from Puerto Rico excluding
A30: Line 9 | B30: Enter amount of income from America Samoa excluding
A31: Line 10 | B31: Add lines 5 through 9. This is MAGI for purposes of Tuition & Fees Deduction. | K31: =SUM(K27:K30) -> 0
A32: Line 11 | B32: Tuition & Fees Deduction | K32: =IF(OR('Extension Form'!E3="Single",'Extension Form'!E3="HOH",'Extension Form'!E3="QW"),IF(K31<65000,4000,IF(K31<80000,2000,0)),IF('Extension Form'!E3="MFJ",IF(K31<130000,4000,IF(K31<160000,2000,0)),0)) -> 4000
A34: Form 8863
A35: Part I -- American Opportunity Credit Portion
A36: Line 1 | B36: Total Tuition & Fees spent, same as line 30 | K36: =K62 -> 0
A37: Line 2 | B37: Enter $180,000 if MFJ, or $90,000 if Single, HOH, or QW | K37: =IF(OR('Extension Form'!E3="Single",'Extension Form'!E3="HOH",'Extension Form'!E3="QW"),90000,IF('Extension Form'!E3="MFJ",180000,0)) -> 90000
A38: Line 3 | B38: Enter MAGI figured for the tuition & fees deduction from above (line 10) | K38: =K10 -> 0
A39: Line 4 | B39: Subtract line 3 from 2. If zero or less, stop; you cannot take any education credit. | K39: =IF((K37-K38)<0,0,K37-K38) -> 90000
A40: Line 5 | B40: Enter $20,000 if MFJ; $10,000 if single, HOH, or QW | K40: =IF(OR('Extension Form'!E3="Single",'Extension Form'!E3="HOH",'Extension Form'!E3="QW"),10000,IF('Extension Form'!E3="MFJ",20000,0)) -> 10000
A41: Line 6 | B41: If line 4 is equal to or more than line 5, enter 1.0000 on line 6, otherwise divide line 4 by 5. | K41: =IF(K39>=K40,1,K39/K40) -> 1
A42: Line 7 | B42: Multiply line 1 by line 6. | K42: =K36*K41 -> 0
A43: Line 8 | B43: Multiply line 7 by 40% (.40). Enter the amount here & on form 1040, line 66. | K43: =K42*0.4 -> 0
A45: Part II -- Nonrefundable Education Credits
A46: Line 9 | B46: Subtract line 8 from line 7. Enter here & on line 2 of the Credit Limit Worksheet (see instructions) | K46: =K42-K43 -> 0
A47: Line 10 | B47: Enter total of all amounts for all students, line 31, Part III. If 0, skip lines 11 through 17, enter 0 on line 18, go to line 19. | K47: =IF(K65>0,K65,"SKIP LINES 11 THRU 17, ENTER 0 ON LINE 18, GO TO LINE 19") -> SKIP LINES 11 THRU 17, ENTER 0 ON LINE 18, GO TO LINE 19
A48: Line 11 | B48: Enter the smaller of line 10 or $10,000 | K48: =IF(K65>=0,"SKIPPED",MIN(K47,10000)) -> SKIPPED
A49: Line 12 | B49: Multiply 11 by 20% (.20) | K49: =IF(K65>=0,"SKIPPED",K48*0.2) -> SKIPPED
A50: Line 13 | B50: Enter $127,000 if married filing jointly; $63,000 if single, head of household, or qualifying widow(er) | K50: =IF(K65>=0,"SKIPPED",IF(OR('Extension Form'!E3="Single",'Extension Form'!E3="HOH",'Extension Form'!E3="QW"),63000,IF('Extension Form'!E3="MFJ",127000,0))) -> SKIPPED
A51: Line 14 | B51: Enter your MAGI figured for tuition & fees deduction from above (line 10) | K51: =IF(K65>=0,"SKIPPED",K47) -> SKIPPED
A52: Line 15 | B52: Subtract line 14 from line 13. If 0 or less, skip lines 16 & 17, enter 0 on line 18, go to line 19. | K52: =IF(K65>=0,"SKIPPED",K50-K51) -> SKIPPED
A53: Line 16 | B53: Enter $20,000 if MFJ, $10,000 if single, HOH, or QW | K53: =IF(K65>=0,"SKIPPED",IF(OR('Extension Form'!E3="Single",'Extension Form'!E3="HOH",'Extension Form'!E3="QW"),10000,IF('Extension Form'!E3="MFJ",20000,0))) -> SKIPPED
A54: Line 17 | B54: If line 15 is equal to or mor ethan line 16, enter 1.000 on line 17, & go to line 18. Else, divide line 15 by 16. | K54: =IF(K65>=0,"SKIPPED",IF(K52>K53,1,K52/K53)) -> SKIPPED
A55: Line 18 | B55: Multiply line 12 by line 17. Enter here & on line 1 of the Credit Limit Worksheet | K55: =IF(K65>=0,0,K49/K54) -> 0
A56: Line 19 | B56: Enter the amount from line 7 of the Credit Limit worksheet here and on Form 1040, line 49. | K56: =K75 -> 0
A58: Part III - Form 8863 - American Opportunity Credit
A59: Line 27 | B59: Adjusted qualified education expenses (Do not enter more than $4,000) | K59: =IF('Extension Form'!G45>4000,4000,'Extension Form'!G45) -> 0
A60: Line 28 | B60: Subtract $2,000 from line 27. If zero or less enter 0. | K60: =IF(K59-2000<0,0,K59-2000) -> 0
A61: Line 29 | B61: Multiply line 28 by 25% (.25) | K61: =K60*0.25 -> 0
A62: Line 30 | B62: If line 28 is 0, enter the amount from line 27. Else, add $2,000 to the amount on line 29 and enter result. Skip line 31. | K62: =IF(K60=0,K59,2000+K61) -> 0
B63: Include the total of all amounts from all Parts III, line 30 on Part I, line 1.
A64: Part III - Form 8863 - Lifetime Learning Credit
A65: Line 31 | B65: Adjusted qualified education expenses (see instructions). Include total of all amounts from all Parts III, line 31, on Part II, line 10 | K65: ='Extension Form'!G46 -> 0
A68: Form 8863 - Credit Limit Worksheet
A69: Line 1 | B69: Enter the amount from Form 8863 line 18 | K69: =K55 -> 0
A70: Line 2 | B70: Enter the amount from Form 8863, line 9 | K70: =K46 -> 0
A71: Line 3 | B71: Add lines 1 & 2 | K71: =SUM(K69,K70) -> 0
A72: Line 4 | B72: Enter the amount from Form 1040, line 46, total of income tax & AMT before any education credits | K72: ='Extension Form'!E69 -> 0
A73: Line 5 | B73: Enter the amount of foreign tax credit, childcare credit & credit for elderly or disabled
A74: Line 6 | B74: Subtract line 5 from line 4 | K74: =K72-K73 -> 0
A75: Line 7 | B75: Enter the smaller of line 3 or line 6 here and on Form 8863, line 19 | K75: =IF(AND(K71>0,K73>0),MIN(K71,K73),MAX(K71,K73)) -> 0

Sheet Dropdowns (hidden)
A1: Single
A2: HOH
A3: MFJ
A4: QW
A5: MFS lived apart from Spouse all year
A6: MFS lived with Spouse

Sheet Child Tax Credit Form (hidden)
A1: Part I | B1: Line 1 | C1: # of qualifying kids under 17 at end of tax year | D1: ='Extension Form'!G5 -> 0
B2: Line 2 | C2: AGI | D2: ='Extension Form'!H51 -> 0
B3: Line 3 | C3: Exclusion of income from Puerto Rico, 2555, etc.
B4: Line 4 | C4: Add lines 2 & 3 | D4: =D2+D3 -> 0
B5: Line 5 | C5: Enter $110,000 for MFJ, $75,000 for Single, HOH, QW, or $55,000 for MFS | D5: =IF('Extension Form'!E3="MFJ",110000,75000) -> 75000
B6: Line 6 | C6: Is amount from line 4 > line 5? If no, leave line 6 blank, enter 0 on line 7, else, subtract line 5 form 4, and increase it to the next multiple of $1,000. For e.g., increase $425 to $1,000, increase $1,025 to $2,000, etc. | D6: =IF(D4>D5,ROUNDUP(D4-D5,-3),0) -> 0
B7: Line 7 | C7: Multiply amount on line 6 by 5% (.05). Enter the result. | D7: =IF(D4>D5,D6*0.05,0) -> 0
B8: Line 8 | C8: Is amount on line 1 more than amount on line 7? If no, no child credit nor additional child credit allowed. If yes, subtract line 7 from 1. | D8: =IF(C1>C7,C1-C7,0) -> 0
A10: Part II
B11: Line 9 | C11: Enter amount from Form 1040 (line 46, total tax before any credits). | D11: ='Extension Form'!H69 -> 0
B12: Line 10 | C12: Add following amounts from 1040 (line 47,48,49,50,form 5695 line 30, form 8910 line 15, form 8936 line 23, Schedule R line 22) | D12: ='Extension Form'!H70 -> 0
B13: Line 11 | C13: Are you claiming the mortgage interest credit, form 8396, adoption credit, form 8839, residential entery efficient property credit, form 5695, or disctrict of columbia first-time homebuyer credit, form 8859? If no, enter amount from line 10, if yes, complete line 11 Worksheet, later, to figure the amount to enter here. | D13: =D12 -> 0 | E13: I HAVE NOT PROGRAMMED THIS LINE. THIS LINE SIMPLY ENTERS AMOUNT FROM LINE ABOVE.
B14: Line 12 | C14: Subtract line 11 from line 9, enter the result. | D14: =D11-D13 -> 0
B15: Line 13 | C15: Is the amount on line 8 of this worksheet more than the amount on line 12? If no, enter the amount from line 8, if yes, enter the amount from line 12. THIS IS YOUR CHILD TAX CREDIT. | D15: =IF(D8>D14,D8,0) -> 0
A18: Line 11 Worksheet | C18: TO BE COMPLETED, ONLY IF PERSON HAS TAKEN THE MORTGAGE INTEREST CREDIT, ADOPTION CREDIT, RESIDENTIAL ENERGY EFFICIENT PROPERTY CREDIT, AND DISTRICT OF COLUMBIA FIRST-TIME HOMEBUYER CREDIT.
B19: Line 1 | C19: Enter the amount from line 8 of the Child Tax Credit Worksheet.
B20: Line 2 | C20: Enter your earned income from the Earned Income Worksheet that applies to you. | E20: I HAVE NOT PROGRAMMED AN EARNED INCOME WORKSHEET; AGAIN THIS LINE 11 WORKSHEET IS ONLY NECESSARY IF TAXPAYER HAS TAKEN THE MORTGAGE INTEREST CREDIT, ADOPTION CREDIT, RESIDENTIAL ENERGY EFFICIENT PROPERTY CREDIT, & DISTRICT OF COLUMBIA FIRST-TIME HOMEBUYER CREDIT.
B21: Line 3 | C21: Is the amount on line 2 more than $3,000? If no, leave line 3 blank, enter 0 on line 4, and go to line 5. If yes, subtract $3,000 from the amount on line 2. Enter the result.
B22: Line 4 | C22: Multiply the amount on line 3 by 15% (.15) and enter the result.
B23: Line 5 | C23: Is amount on line 1 of Child Tax Credit Worksheet $3,000 or more? If no, and zero, then enter amount from line 1 above on line 12 of this workshet. Do not complete rest of worksheet. Instead go back to Child Tax Credit Worksheet & enter amount from line 10 on line 11, & complete lines 12 & 13. If Line 1 is $3,000 or more, then if line 4 is above or equal to or more than line 1 above, leave lines 6 through 9 blank. Enter 0 on line 10, and go to line 11.
B24: Line 6 | C24: If employer w/h or you paid Additional Medicare Tax or Tier 1 RRTA taxes, use the Additional Medicare Tax & RRTA Tax Worksheet to figure the amount to enter; otherwise enter the total of the following amounts from Form(s) W2: Social security tax withheld from box 4, & medicare tax withheld from box 6. If MFJ, include spouse's amounts with yours when completing lines 6 & 7.
B25: Line 7 | C25: Enter total of any amounts from SE deduction & underreported social security taxes from 2nd page 1040.
B26: Line 8 | C26: Add lines 6 & 7. Enter total.
B27: Line 9 | C27: Enter the total of the amounts from form 1040, EIC, & Excess social security & tier 1 RRTA tax withheld.
B28: Line 10 | C28: Subtract line 9 form line 8. IF result is zero or less, enter 0.
B29: Line 11 | C29: Enter larger of line 4 or line 10.
B30: Line 12 | C30: Is amount on line 11 of this worksheet more than the amount on line 1?, If no, subtract line 11 from line 1. Enter result. If yes, enter 0. Next figure amount of any of the following credits that you are claiming: mortgage interest credit, Form 8396, adoption credit, form 8839, residential energy efficient property credit, form 5695, part 8, district of columbia first-time homebuyer credit, form 8859. Then go to line 13.
B31: Line 13 | C31: Enter the total amounts from Form 8396, line 9, form 8839, line 16, form 5965, line 15, & form 8859, line 3.
B32: Line 14 | C32: Enter amount from line 10 of the Child Tax Credit Worksheet.
B33: Line 15 | C33: Add lines 13 & 14. Enter the total. Enter this amount on line 11 of the Child Tax Credit Worksheet.

Sheet AMT (hidden)
A1: Part I
B2: Line 1 | C2: 1 If filing Schedule A (Form 1040), enter the amount from Form 1040, line 41, and go to line 2. Otherwise, enter the amount from Form 1040, line 38, and go to line 7. (If less than zero, enter as a negative amount.) | D2: =IF('Extension Form'!H62>'Extension Form'!H63,'Extension Form'!H51-'Extension Form'!H64,'Extension Form'!H51) -> 0
B3: Line 2 | C3: Medical and dental. If you or your spouse was 65 or older, enter the smaller of Schedule A (Form 1040), line 4, or 2.5% (.025) of Form 1040, line 38. If zero or less, enter -0- . . . . . . . . . . . . | D3: =IF('Extension Form'!H62>'Extension Form'!H63,IF('Extension Form'!E2=TRUE,MIN('Extension Form'!H57,0.025*'Extension Form'!H51),0),0) -> 0 | E3: (ONLY ENTER IF YOU OR YOUR BORN AFTER JAN 2ND, 1949)
B4: Line 3 | C4: Taxes from Schedule A (Form 1040), line 9 . . . . . . . . . . . . . . . . . . . . | D4: =IF('Extension Form'!H62>'Extension Form'!H63,'Extension Form'!H54+'Extension Form'!H55+'Extension Form'!H56,0) -> 0
B5: Line 4 | C5: Enter the home mortgage interest adjustment, if any, from line 6 of the worksheet in the instructions for this line | D5: =IF('Extension Form'!H62>'Extension Form'!H63,E71,0) -> 0
B6: Line 5 | C6: Miscellaneous deductions from Schedule A (Form 1040), line 27. . . . . . . . . . . . . . | D6: =IF('Extension Form'!H62>'Extension Form'!H63,'Extension Form'!H61,0) -> 0
B7: Line 6 | C7: If Form 1040, line 38, is $150,000 or less, enter -0-. Otherwise, see instructions . . . . . . . . . | D7: =IF('Extension Form'!H58>'Extension Form'!H59,IF(OR(AND('Extension Form'!E3="SINGLE",'Extension Form'!H51>250000),AND('Extension Form'!E3="HOH",'Extension Form'!H51>275000),AND('Extension Form'!E3="MFJ",'Extension Form'!H51>300000),AND('Extension Form'!E3="QW",'Extension Form'!H51>300000),AND('Extension Form'!E3="MFS lived apart form Spouse all year",'Extension Form'!H51>150000),AND('Extension Form'!E3="MFS lived with Spouse",'Extension Form'!H51>150000)),-D82,0),0) -> 0 | E7: ENTERED AS A NEGATIVE, PER INSTRUCTIONS.
B8: Line 7 | C8: Tax refund from Form 1040, line 10 or line 21 . . . . . . . . . . . . . . . . . . . | D8: =-'Extension Form'!H12 -> 0 | E8: ENTERED AS A NEGATIVE, PER INSTRUCTIONS.
B9: Line 8 | C9: Investment interest expense (difference between regular tax and AMT). . . . . . . . . . . | D9: ='Extension Form'!H53 -> 0 | E9: I have not done a worksheet to calculate 4952 AMT, and have just added the entire investment interest back. Instruction say to add the difference between the 4952 AMT amount and the regular 4952 amount as a negative amount.
B10: Line 9 | C10: Depletion (difference between regular tax and AMT) . . . . . . . . . . . . . . . . . | D10: 0
B11: Line 10 | C11: Net operating loss deduction from Form 1040, line 21. Enter as a positive amount . . . . . . . . | D11: ='Extension Form'!H27 -> 0 | E11: ENTER AS A POSITIVE AMOUNT.
B12: Line 11 | C12: Alternative tax net operating loss deduction . . . . . . . . . . . . . . . . . . . . | D12: 0 | E12: ENTER AS A NEGATIVE AMOUNT.
B13: Line 12 | C13: Interest from specified private activity bonds exempt from the regular tax . . . . . . . . . . | D13: 0
B14: Line 13 | C14: Qualified small business stock (7% of gain excluded under section 1202) . . . . . . . . . . | D14: 0
B15: Line 14 | C15: Exercise of incentive stock options (excess of AMT income over regular tax income) . . . . . . . . | D15: 0
B16: Line 15 | C16: Estates and trusts (amount from Schedule K-1 (Form 1041), box 12, code A) . . . . . . . | D16: 0
B17: Line 16 | C17: Electing large partnerships (amount from Schedule K-1 (Form 1065-B), box 6) . . . . . . | D17: 0
B18: Line 17 | C18: Disposition of property (difference between AMT and regular tax gain or loss) . . . . . . . | D18: 0 | E18: ENTER DIFFERENCE AS A NEGATIVE AMOUNT.
B19: Line 18 | C19: Depreciation on assets placed in service after 1986 (difference between regular tax and AMT) . . . . | D19: 0 | E19: ENTER DIFFERENCE AS A NEGATIVE AMOUNT.
B20: Line 19 | C20: Passive activities (difference between AMT and regular tax income or loss) . . . . . . . . . | D20: 0 | E20: ENTER DIFFERENCE AS A NEGATIVE AMOUNT.
B21: Line 20 | C21: Loss limitations (difference between AMT and regular tax income or loss) . . . . . . . . . . | D21: 0 | E21: ENTER DIFFERENCE AS A NEGATIVE AMOUNT.
B22: Line 21 | C22: Circulation costs (difference between regular tax and AMT) . . . . . . . . . . . . . . . | D22: 0
B23: Line 22 | C23: Long-term contracts (difference between AMT and regular tax income) . . . . . . . . . . | D23: 0 | E23: ENTER DIFFERENCE AS A NEGATIVE AMOUNT.
B24: Line 23 | C24: Mining costs (difference between regular tax and AMT) . . . . . . . . . . . . . . . . | D24: 0 | E24: ENTER DIFFERENCE AS A NEGATIVE AMOUNT.
B25: Line 24 | C25: Research and experimental costs (difference between regular tax and AMT) . . . . . . . | D25: 0 | E25: ENTER DIFFERENCE AS A NEGATIVE AMOUNT.
B26: Line 25 | C26: Income from certain installment sales before January 1, 1987 . . . . . . . . . . . . . . | D26: 0 | E26: ENTER AS A NEGATIVE AMOUNT.
B27: Line 26 | C27: 26 Intangible drilling costs preference . . . . . . . . . . . . . . . . . . . . . . . 26 | D27: 0 | E27: ENTER DIFFERENCE AS A NEGATIVE AMOUNT.
B28: Line 27 | C28: Other adjustments, including income-based related adjustments . . . . . . . . . . . . . | D28: 0 | E28: ENTER DIFFERENCE AS A NEGATIVE AMOUNT.
B29: Line 28 | C29: Alternative minimum taxable income. Combine lines 1 through 27. (If married filing separately and line is more than $238,550, see instructions.) . . . . . . . . . . . . . . . . . .. | D29: =SUM(D2:D28) -> 0
A30: Part II
B31: Line 29 | C31: Exemption. (If you were under age 24 at the end of 2013, see instructions.) IF your filing status is . . . AND line 28 is not over . . . THEN enter on line 29 . . . Single or head of household . . . . $115,400 . . . . . $51,900 Married filing jointly or qualifying widow(er) 153,900 . . . . . 80,800 Married filing separately. . . . . . 76,950 . . . . . 40,400 } If line 28 is over the amount shown above for your filing status, see instructions. | D31: =IF(OR('Extension Form'!E3="HOH",'Extension Form'!E3="SINGLE"),IF(D29<115400,51900,D96),IF(OR('Extension Form'!E3="MFJ",'Extension Form'!E3="QW"),IF(D29<153900,80800,D96),IF(OR('Extension Form'!E3="MFS lived apart from Spouse all year",'Extension Form'!E3="MFS lived with Spouse"),IF(D29<76950,40400,D96),0))) -> 51900
B32: Line 30 | C32: Subtract line 29 from line 28. If more than zero, go to line 31. If zero or less, enter -0- here and on lines 31, 33, and 35, and go to line 34 . | D32: =D29-D31 -> -51900
B33: Line 31 | C33: • If you are filing Form 2555 or 2555-EZ, see instructions for the amount to enter. • If you reported capital gain distributions directly on Form 1040, line 13; you reported qualified dividends on Form 1040, line 9b; or you had a gain on both lines 15 and 16 of Schedule D (Form 1040) (as refigured for the AMT, if necessary), complete Part III on the back and enter the amount from line 60 here. • All others: If line 30 is $179,500 or less ($89,750 or less if married filing separately), multiply line 30 by 26% (.26). Otherwise, multiply line 30 by 28% (.28) and subtract $3,590 ($1,795 if married filing separately) from the result. | D33: =IF(OR('Extension Form'!E3="MFS lived with Spouse",'Extension Form'!E3="MFS lived apart from Spouse all year"),IF(D32<89750,D32*0.26,D32*0.28-1795),IF(D32<179500,D32*0.26,D32*0.28-3590)) -> -13494 | E33: Part III not factored in.
B34: Line 32 | C34: Alternative minimum tax foreign tax credit (see instructions) . | E34: not calculated
B35: Line 33 | C35: Tentative minimum tax. Subtract line 32 from line 31 . . . . . . . . . . . . . . . . . . | D35: =D33-D34 -> -13494
B36: Line 34 | C36: Tax from Form 1040, line 44 (minus any tax from Form 4972 and any foreign tax credit from Form 1040, line 47). If you used Schedule J to figure your tax, the amount from line 44 of Form 1040 must be refigured without using Schedule J (see instructions) . . . . . . . . . . . . . . . . . . . . . | D36: ='Extension Form'!H67 -> 0
B37: Line 35 | C37: AMT. Subtract line 34 from line 33. If zero or less, enter -0-. Enter here and on Form 1040, line 45 . . . . . | D37: =D35-D36 -> -13494
A39: Part III | B39: Line 36 | C39: Enter the amount from Form 6251, line 30. If you are filing Form 2555 or 2555-EZ, enter the amount from line 3 of the worksheet in the instructions for line 31 . . . . . . . . . . . . . . . . . 3 | E39: did not calculate this part for people with foreign exemptions.
B40: Line 37 | C40: Enter the amount from line 6 of the Qualified Dividends and Capital Gain Tax Worksheet in the instructions for Form 1040, line 44, or the amount from line 13 of the Schedule D Tax Worksheet in the instructions for Schedule D (Form 1040), whichever applies (as refigured for the AMT, if necessary) (see instructions). If you are filing Form 2555 or 2555-EZ, see instructions for the amount to enter . .
B41: Line 38 | C41: Enter the amount from Schedule D (Form 1040), line 19 (as refigured for the AMT, if necessary) (see instructions). If you are filing Form 2555 or 2555-EZ, see instructions for the amount to enter . . . . . . . . . . . .
B42: Line 39 | C42: If you did not complete a Schedule D Tax Worksheet for the regular tax or the AMT, enter the amount from line 37. Otherwise, add lines 37 and 38, and enter the smaller of that result or the amount from line 10 of the Schedule D Tax Worksheet (as refigured for the AMT, if necessary). If you are filing Form 2555 or 2555-EZ, see instructions for the amount to enter . . . . . .
B43: Line 40 | C43: Enter the smaller of line 36 or line 39 . . . . . .
B44: Line 41 | C44: Subtract line 40 from line 36 . . . . . . . . . . . .
B45: Line 42 | C45: If line 41 is $179,500 or less ($89,750 or less if married filing separately), multiply line 41 by 26% (.26). Otherwise, multiply line 41 by 28% (.28) and subtract $3,590 ($1,795 if married filing separately) from the result . . . ▶ 4
B46: Line 43 | C46: Enter: • $72,500 if married filing jointly or qualifying widow(er), • $36,250 if single or married filing separately, or • $48,600 if head of household.
B47: Line 44 | C47: Enter the amount from line 7 of the Qualified Dividends and Capital Gain Tax Worksheet in the instructions for Form 1040, line 44, or the amount from line 14 of the Schedule D Tax Worksheet in the instructions for Schedule D (Form 1040), whichever applies (as figured for the regular tax). If you did not complete either worksheet for the regular tax, enter the amount from Form 1040, line 43; but do not enter less than -0- . . . . . . . . . . .
B48: Line 45 | C48: Subtract line 44 from line 43. If zero or less, enter -0- . .
B49: Line 46 | C49: Enter the smaller of line 36 or line 37 . . . . . . . . . . . . .
B50: Line 47 | C50: Enter the smaller of line 45 or line 46. This amount is taxed at 0% . . . .
B51: Line 48 | C51: Subtract line 47 from line 46
B52: Line 49 | C52: Enter the amount from the Line 49 Worksheet in the instructions
B53: Line 50 | C53: Enter the smaller of line 48 or line 49
B54: Line 51 | C54: Multiply line 50 by 15% (.15)
B55: Line 52 | C55: Add lines 47 and 50 If lines 52 and 36 are the same, skip lines 53 through 57 and go to line 58. Otherwise, go to line 53.
B56: Line 53 | C56: Subtract line 52 from line 46 . .
B57: Line 54 | C57: Multiply line 53 by 20% (.20) If line 38 is zero or blank, skip lines 55 through 57 and go to line 58. Otherwise, go to line 55.
B58: Line 55 | C58: Add lines 41, 52, and 53
B59: Line 56 | C59: Subtract line 55 from line 36
B60: Line 57 | C60: Multiply line 56 by 25% (.25)
B61: Line 58 | C61: Add lines 42, 51, 54, and 57
B62: Line 59 | C62: If line 36 is $179,500 or less ($89,750 or less if married filing separately), multiply line 36 by 26% (.26). Otherwise, multiply line 36 by 28% (.28) and subtract $3,590 ($1,795 if married filing separately) from the result .
B63: Line 60 | C63: Enter the smaller of line 58 or line 59 here and on line 31. If you are filing Form 2555 or 2555-EZ, do not enter this amount on line 31. Instead, enter it on line 4 of the worksheet in the instructions for line 31 .
A65: Home Mortgage Interest Adjustment Worksheet - Line 4
B66: Line 1 | C66: Enter the total of the home mortgage interest you deducted on lines 10 through 12 of Schedule A (Form 1040) and any mortgage insurance premiums you deducted on line 13 of Schedule A (Form 1040) ......... | E66: =IF('Extension Form'!H62>'Extension Form'!H63,'Extension Form'!H52,0) -> 0
B67: Line 2 | C67: Enter the part, if any, of the interest included on line 1 above that was paid on an eligible mortgage (defined in the line 4 instructions). Include any mortgage insurance premiums included on line 1 above that were paid in connection with an eligible mortgage ............. | E67: 0 | F67: (enter mortgage used to buy, build, or substantially improve primary or second home; not any mortgage interest incurred on that part of a cash out balance).
B68: Line 3 | C68: Enter the part, if any, of the interest included on line 1 above that was paid on a mortgage whose proceeds were used in a refinancing (including a second or later refinancing) of an eligible mortgage. Include any mortgage insurance premiums included on line 1 above that were paid in connection with such a mortgage. Do not include any interest paid on (or any mortgage insurance premiums paid in connection with) the part of the balance of the new mortgage that exceeded the balance of the original eligible mortgage immediately before it was refinanced (or, if smaller, the balance of any prior refinanced mortgage immediately before that mortgage was refinanced) .................... | E68: 0 | F68: (enter mortgage used to refinance primary or second home; not any mortgage interest incurred on that part of a cash out balance).
B69: Line 4 | C69: Enter the part, if any, of the interest included on line 1 above that was paid on a mortgage: •Taken out before July 1, 1982, and • Secured, at the time the mortgage was taken out, by your main home or a qualified dwelling used by you or your family (see definitions). Do not include any amount entered on line 2 or line 3 above .................................. | E69: 0 | F69: This is most likely going to be 0. Nobody has a mortgage from 1982 anymore.
B70: Line 5 | C70: Add lines 2 through 4 ...................................... 5 | E70: =IF('Extension Form'!H62>'Extension Form'!H63,SUM(E67:E69),0) -> 0
B71: Line 6 | C71: Subtract line 5 from line 1 and enter the result on Form 6251, line 4 ...... | E71: =IF('Extension Form'!H62>'Extension Form'!H63,E66-E70,0) -> 0
B73: Itemized Deductions Worksheet -- Line 29
B74: Line 1 | C74: Enter the total of the amounts from Schedule A, lines 4, 9, 15, 19, 20, 27, and 28 | D74: =IF('Extension Form'!H62>'Extension Form'!H63,'Extension Form'!H62,0) -> 0
B75: Line 2 | C75: Enter the total of the amount from Schedule A, lines 4 (med exp), 14 (inv interest), and 20 (casualty), plus any gambling and casualty or theft losses included on line 28 .................................................................................Be sure your total gambling and casualty or theft losses are clearly identified on the dotted lines next to line 28. | D75: =IF('Extension Form'!H62>'Extension Form'!H63,'Extension Form'!H57+'Extension Form'!H53+'Extension Form'!H59+'Extension Form'!H60,0) -> 0
B76: Line 3 | C76: Is the amount on line 2 less than the amount on line 1? No. STOP; Your deduction is not limited. Enter the amount from line 1 above on Schedule A, line 29. Do not complete the rest of this worksheet. Yes. Subtract line 2 from line 1 ............................................................ | D76: =IF('Extension Form'!H62>'Extension Form'!H63,IF(D75<D74,D74-D75,"DEDUCTION NOT LIMITED. Enter Line 1 above on Schedule A Line 29. Do not complete rest of this worksheet."),0) -> 0
B77: Line 4 | C77: Multiply line 3 by 80% (.80) ................................................. 4 | D77: =IF('Extension Form'!H62>'Extension Form'!H63,IF(D75<D74,D76*0.8,"STOP, DEDUCTION NOT LIMITED"),0) -> 0
B78: Line 5 | C78: Enter the amount from Form 1040, line 38 ........................................ 5 | D78: =IF('Extension Form'!H62>'Extension Form'!H63,'Extension Form'!H51,0) -> 0
B79: Line 6 | C79: Enter $300,000 if married filing jointly or qualifying widow(er); $275,000 if head of household; $250,000 if single; or $150,000 if married filing separately ............................. | D79: =IF('Extension Form'!H62>'Extension Form'!H63,IF(D75<D74,IF(OR('Extension Form'!E3="MFJ",'Extension Form'!E3="QW"),300000,IF('Extension Form'!E3="HOH",275000,IF('Extension Form'!E3="SINGLE",250000,IF(OR('Extension Form'!E3="MFS lived apart from Spouse all year",'Extension Form'!E3="MFS lived with Spouse"),150000,"FILING STATUS?")))),0),0) -> 0
B80: Line 7 | C80: Is the amount on line 6 less than the amount on line 5? No. STOP Your deduction is not limited. Enter the amount from line 1 above on Schedule A, line 29. Do not complete the rest of this worksheet. Yes. Subtract line 6 from line 5 ........................................... | D80: =IF('Extension Form'!H62>'Extension Form'!H63,IF(D79<D78,D78-D79,0),0) -> 0
B81: Line 8 | C81: Multiply line 7 by 3% (.03) .................................................. | D81: =IF('Extension Form'!H62>'Extension Form'!H63,D80*0.3,0) -> 0
B82: Line 9 | C82: Enter the smaller of line 4 or line 8 ............................................................. | D82: =IF('Extension Form'!H62>'Extension Form'!H63,MIN(D77,D81),0) -> 0
B83: Line 10 | C83: Total itemized deductions. Subtract line 9 from line 1. Enter the result here and on Schedule A, line 29 ............... | D83: =IF('Extension Form'!H62>'Extension Form'!H63,D74-D82,0) -> 0
B86: Exemption Worksheet for Line 29 of AMT 6251 Form
B87: Line 1 | C87: Enter: $51,900 if single or head of household; $80,800 if married filing jointly or qualifying widow(er); $40,400 if married filing separately | D87: =IF(OR('Extension Form'!E3="SINGLE",'Extension Form'!E3="HOH"),51900,IF(OR('Extension Form'!E3="MFJ",'Extension Form'!E3="QW"),80800,IF(OR('Extension Form'!E3="MFS lived with Spouse",'Extension Form'!E3="MFS lived apart from Spouse all year"),40400,0))) -> 51900
B88: Line 2 | C88: Enter your alternative minimum taxable income (AMTI) from Form 6251, line 28 | D88: =D29 -> 0
B89: Line 3 | C89: Enter: $115,400 if single or head of household; $153,900 if married filing jointly or qualifying widow(er); $76,950 if married filing separately | D89: =IF(OR('Extension Form'!E3="SINGLE",'Extension Form'!E3="HOH"),115400,IF(OR('Extension Form'!E3="MFJ",'Extension Form'!E3="QW"),153900,IF(OR('Extension Form'!E3="MFS lived with Spouse",'Extension Form'!E3="MFS lived apart from Spouse all year"),76950,0))) -> 115400
B90: Line 4 | C90: Subtract line 3 from line 2. If zero or less, enter -0- | D90: =D88-D89 -> -115400
B91: Line 5 | C91: Multiply line 4 by 25% (.25) . | D91: =D90*0.25 -> -28850
B92: Line 6 | C92: Subtract line 5 from line 1. If zero or less, enter -0-. If any of the three conditions under Certain Children Under Age 24 apply to you, complete lines 7 through 10. Otherwise, stop here and enter this amount on Form 6251, line 29, and go to Form 6251, line 30 | D92: =IF((D87-D91)<0,0,D87-D91) -> 80750
B93: Line 7 | C93: Minimum exemption amount for certain children under age 24 | D93: 7150
B94: Line 8 | C94: Enter your earned income, if any (see instructions) | D94: ='Extension Form'!H8+'Extension Form'!H14+'Extension Form'!H21 -> 0
B95: Line 9 | C95: Add lines 7 and 8 . | D95: =D93+D94 -> 7150
B96: Line 10 | C96: Enter the smaller of line 6 or line 9 here and on Form 6251, line 29, and go to Form 6251, line 30 | D96: =MIN(D92,D95) -> 7150
